bitfinex/quotes_BTCUSD_20250212
["timestamp","ask_amount","ask_price","bid_price","bid_amount"]
[1739373074995,0.15,94993.0,94965.0,0.08424999]
[1739373075205,0.15,94990.0,94961.0,0.10250365]
[1739373075471,0.157946,94970.0,94955.0,0.01482232]
[1739373075706,0.210581,94975.0,94955.0,0.01482232]
[1739373075953,0.157946,94970.0,94956.0,0.210623]
[1739373076164,0.0783,94981.0,94955.0,0.01482232]
[1739373076384,0.0783,94981.0,94955.0,0.11732597]
[1739373076589,0.08972353,94969.0,94956.0,0.10619211]
[1739373076794,0.08972353,94969.0,94960.0,0.15796]
[1739373077006,0.157952,94965.0,94956.0,0.00368846]
[1739373077216,0.08972353,94969.0,94961.0,0.00368061]
[1739373077457,0.08972353,94969.0,94968.0,0.157947]
[1739373077726,0.08972353,94969.0,94968.0,0.26045065]
[1739373077988,0.08972353,94969.0,94968.0,0.26415041]
[1739373078267,0.02048924,94969.0,94968.0,0.26415041]
[1739373078479,0.02048924,94969.0,94968.0,0.43715041]
[1739373078690,0.02048924,94969.0,94968.0,0.44753122]
[1739373078894,0.02148924,94969.0,94968.0,0.45853122]
[1739373079101,0.02148924,94969.0,94968.0,0.43553122]
[1739373079321,0.02148924,94969.0,94968.0,0.42453122]
[1739373079322,0.02048924,94969.0,94968.0,0.42453122]
[1739373079578,0.04109115,94969.0,94968.0,0.45953122]
[1739373080176,0.04109115,94969.0,94968.0,0.43653122]
[1739373080409,0.02060191,94969.0,94968.0,0.27615041]
[1739373081596,0.01960191,94969.0,94968.0,0.26415041]
[1739373082000,0.02060191,94969.0,94968.0,0.27915041]
[1739373082432,0.01960191,94969.0,94968.0,0.26415041]
[1739373082642,0.01960191,94969.0,94968.0,0.27415041]
[1739373082849,0.001,94969.0,94968.0,0.27415041]
[1739373083396,0.01960191,94978.0,94968.0,0.10620341]
[1739373083572,0.01960191,94978.0,94970.0,0.157943]
[1739373083787,0.01960191,94978.0,94968.0,0.01869976]
[1739373084096,0.01960191,94978.0,94972.0,0.15794]
[1739373084233,0.157934,94976.0,94968.0,0.015]
[1739373084431,0.05093519,94977.0,94973.0,0.00372629]
[1739373084432,0.157937,94975.0,94973.0,0.00372629]
[1739373084645,0.157946,94969.0,94968.0,0.015]
[1739373084865,0.157946,94969.0,94960.0,0.157961]
[1739373085040,0.157949,94968.0,94958.0,0.157963]
[1739373085248,0.211596,94969.0,94955.0,0.22544632]
[1739373085468,0.211596,94969.0,94959.0,0.157962]
[1739373085469,0.15795,94967.0,94959.0,0.157962]
[1739373085741,0.15795,94967.0,94955.0,0.22544632]
[1739373085742,0.09382349,95007.0,94961.0,0.157959]
[1739373085964,0.157945,94970.0,94968.0,0.0001067]
[1739373086193,0.09304519,94987.0,94968.0,0.0011067]
[1739373086443,0.157938,94974.0,94968.0,0.0011067]
[1739373086656,0.210567,94982.0,94969.0,0.00373256]
[1739373086873,0.157939,94974.0,94968.0,0.0001067]
[1739373087107,0.09304519,94987.0,94969.0,0.00373256]
[1739373087347,0.09304519,94987.0,94968.0,0.0001067]
[1739373087348,0.157917,94987.0,94968.0,0.0001067]
[1739373087573,0.157919,94985.0,94975.0,0.157935]
[1739373087823,0.157919,94985.0,94976.0,0.157934]
[1739373088055,0.210525,95001.0,94976.0,0.157934]
[1739373088056,0.17413295,95008.0,94976.0,0.00372158]
[1739373088319,0.02107859,95002.0,94976.0,0.00372158]
[1739373088561,0.210524,95001.0,94981.0,0.210567]
[1739373088801,0.12358224,95002.0,94968.0,0.0001067]
[1739373088802,0.10250365,95000.0,94968.0,0.0001067]
[1739373089050,0.10250365,95000.0,94982.0,0.00372759]
[1739373089291,0.10250365,95000.0,94968.0,0.0001067]
[1739373089514,0.157927,94981.0,94969.0,0.00373527]
[1739373089765,0.210563,94984.0,94969.0,0.00373527]
[1739373089914,0.157936,94975.0,94969.0,0.00373527]
[1739373090133,0.02085924,94988.0,94969.0,0.00373527]
[1739373090340,0.210557,94986.0,94972.0,0.157939]
[1739373090548,0.157928,94980.0,94972.0,0.157939]
[1739373090744,0.00978326,94983.0,94968.0,0.0001067]
[1739373090745,0.157937,94975.0,94973.0,0.00372899]
[1739373091140,0.03390321,94983.0,94968.0,0.0001067]
[1739373091141,0.00978326,94983.0,94968.0,0.0001067]
[1739373091565,0.15793,94979.0,94968.0,0.0001067]
[1739373091753,0.157941,94972.0,94969.0,0.00373527]
[1739373091957,0.157943,94971.0,94969.0,0.00373527]
[1739373092160,0.210588,94973.0,94968.0,0.0001067]
[1739373092506,0.157946,94969.0,94968.0,0.0001067]
[1739373092711,0.2158585,94969.0,94968.0,0.0001067]
[1739373093098,0.157946,94969.0,94968.0,0.0001067]
[1739373093847,0.157946,94969.0,94504.0,60.0]
[1739373093848,0.2739,94956.0,94906.0,0.210734]
[1739373093984,0.2739,94956.0,94882.0,0.421572]
[1739373093985,0.240812,94929.0,94887.0,0.210776]
[1739373094185,0.34331565,94929.0,94904.0,0.158054]
[1739373094390,0.34331565,94929.0,94902.0,0.210743]
[1739373094624,0.34331565,94929.0,94893.0,0.01065235]
[1739373094625,0.240812,94929.0,94903.0,0.158055]
[1739373094833,0.240812,94929.0,94901.0,0.23741167]
[1739373095232,0.238412,94929.0,94905.0,0.158052]
[1739373095455,0.35172764,94929.0,94901.0,0.02666667]
[1739373095636,0.39162619,94929.0,94901.0,0.02666667]
[1739373095995,0.91833619,94929.0,94901.0,0.02666667]
[1739373096193,0.158027,94920.0,94901.0,0.02666667]
[1739373096416,0.731637,94920.0,94901.0,0.02666667]
[1739373096651,1.01425594,94920.0,94901.0,0.02666667]
[1739373096820,1.02425594,94920.0,94901.0,0.02666667]
[1739373097255,1.05083273,94920.0,94901.0,0.02666667]
[1739373097452,1.14333638,94920.0,94901.0,0.02666667]
[1739373097702,0.67611365,94920.0,94901.0,0.02666667]
[1739373097889,0.10250365,94919.0,94901.0,0.02666667]
[1739373098200,0.158051,94906.0,94901.0,0.02666667]
[1739373098405,0.21071,94917.0,94901.0,0.02666667]
[1739373098536,0.158043,94911.0,94901.0,0.02666667]
[1739373098742,0.684753,94911.0,94901.0,0.158059]
[1739373098941,0.55794142,94911.0,94900.0,4e-05]
[1739373099206,0.55794142,94911.0,94909.0,0.158045]
[1739373099413,0.55794142,94911.0,94910.0,0.10250365]
[1739373099591,0.55794142,94911.0,94910.0,0.10428027]
[1739373100464,0.55794142,94911.0,94910.0,0.36538027]
[1739373100586,0.50583824,94911.0,94910.0,0.36538027]
[1739373100780,0.35373824,94911.0,94910.0,0.36538027]
[1739373101009,0.09391304,94928.0,94927.0,0.01]
[1739373101279,0.09391304,94928.0,94927.0,0.43351965]
[1739373101480,0.09391304,94928.0,94927.0,0.28351965]
[1739373101721,0.09391304,94928.0,94927.0,0.26051965]
[1739373101929,0.09391304,94928.0,94927.0,0.26326956]
[1739373102133,0.09391304,94928.0,94927.0,0.26226956]
[1739373102340,0.09391304,94928.0,94927.0,0.16076591]
[1739373102546,0.09491304,94928.0,94927.0,0.16476591]
[1739373102749,0.00044289,94929.0,94927.0,0.16076591]
[1739373102954,0.001,94928.0,94927.0,0.17576591]
[1739373103158,0.002,94928.0,94927.0,0.17976591]
[1739373103363,0.00044289,94929.0,94927.0,0.00274991]
[1739373103808,0.001,94928.0,94927.0,0.173016]
[1739373104641,0.002,94928.0,94927.0,0.179016]
[1739373104846,0.001,94928.0,94927.0,0.164016]
[1739373105054,0.001,94928.0,94927.0,0.158016]
[1739373105259,0.01178984,94928.0,94927.0,0.167016]
[1739373105466,0.01078984,94928.0,94927.0,0.166016]
[1739373105669,0.00978984,94928.0,94927.0,0.158016]
[1739373105869,0.00978984,94928.0,94927.0,0.159016]
[1739373106080,0.01078984,94928.0,94927.0,0.165016]
[1739373106327,0.01078984,94928.0,94927.0,0.167016]
[1739373106580,0.00978984,94928.0,94927.0,0.161016]
[1739373106869,0.01078984,94928.0,94927.0,0.167016]
[1739373107932,0.01078984,94928.0,94927.0,0.2730275]
[1739373108176,0.01078984,94928.0,94927.0,0.2750275]
[1739373108695,0.001,94928.0,94927.0,0.2750275]
[1739373108918,0.00044289,94929.0,94927.0,0.2660275]
[1739373109130,0.00044289,94929.0,94928.0,0.10250365]
[1739373109345,0.00044289,94929.0,94928.0,0.10150365]
[1739373109587,0.00044289,94929.0,94928.0,0.10432683]
[1739373110251,0.07131529,94959.0,94928.0,0.10432683]
[1739373110504,0.07131529,94959.0,94955.0,0.157969]
[1739373110772,0.07131529,94959.0,94957.0,0.157965]
[1739373111084,0.23688083,94975.0,94964.0,0.157954]
[1739373111177,0.07894383,94975.0,94964.0,0.157954]
[1739373111422,0.15795,94967.0,94932.0,0.210676]
[1739373111696,0.10250365,94966.0,94965.0,0.00342354]
[1739373111914,0.001,94959.0,94944.0,0.157987]
[1739373112127,0.001,94959.0,94932.0,0.10250365]
[1739373112345,0.157951,94966.0,94954.0,0.15797]
[1739373112552,0.10250365,94965.0,94927.0,0.0001068]
[1739373112767,0.157988,94944.0,94927.0,0.0001068]
[1739373112980,0.210631,94953.0,94930.0,0.15801]
[1739373113193,0.157992,94941.0,94931.0,0.158009]
[1739373113394,0.10250365,94952.0,94927.0,0.00023942]
[1739373113395,0.1299,94940.0,94927.0,0.00023942]
[1739373113599,0.1299,94940.0,94931.0,0.158008]
[1739373113804,0.1299,94940.0,94927.0,0.00023942]
[1739373114006,0.1299,94940.0,94932.0,0.158007]
[1739373114329,0.1299,94940.0,94927.0,0.00023942]
[1739373114576,0.158005,94934.0,94927.0,0.00023942]
[1739373114799,0.158006,94933.0,94927.0,0.00023942]
[1739373115026,0.01961131,94939.0,94927.0,0.00023942]
[1739373115234,0.01961131,94939.0,94932.0,0.007]
[1739373115656,0.01961131,94939.0,94932.0,0.009]
[1739373115869,0.01961131,94939.0,94933.0,0.0062966]
[1739373116119,0.158004,94934.0,94933.0,0.0062966]
[1739373116325,0.158014,94928.0,94927.0,0.01223942]
[1739373116539,0.26051765,94928.0,94927.0,0.01223942]
[1739373116946,0.47870542,94928.0,94927.0,0.01223942]
[1739373117162,0.41051765,94928.0,94927.0,0.01223942]
[1739373117367,0.41051765,94928.0,94927.0,0.00023942]
[1739373117566,0.43012896,94928.0,94927.0,0.00023942]
[1739373118177,0.4408987,94928.0,94927.0,0.00023942]
[1739373118382,0.52712457,94928.0,94927.0,0.00023942]
[1739373118604,0.60722457,94928.0,94927.0,0.00023942]
[1739373118928,0.5209987,94928.0,94927.0,0.00023942]
[1739373119179,0.78444531,94928.0,94927.0,0.00023942]
[1739373119428,0.62643131,94928.0,94927.0,0.00023942]
[1739373119672,0.54633131,94928.0,94927.0,0.16176327]
[1739373119965,0.54633131,94928.0,94927.0,0.15825542]
[1739373120132,0.54633131,94928.0,94927.0,0.16461185]
[1739373120342,0.52672,94928.0,94927.0,0.2671155]
[1739373120569,0.52672,94928.0,94927.0,0.16461185]
[1739373120777,0.52672,94928.0,94927.0,0.2671155]
[1739373121239,0.09391304,94932.0,94931.0,0.158009]
[1739373121448,0.08301065,94932.0,94931.0,0.43456573]
[1739373121649,0.08301065,94932.0,94931.0,0.43351265]
[1739373121828,0.08301065,94932.0,94931.0,0.43251265]
[1739373122283,0.08424999,94972.0,94971.0,0.157942]
[1739373122722,0.08424999,94982.0,94946.0,0.210646]
[1739373122924,0.210564,94983.0,94947.0,0.10250365]
[1739373123128,0.12358246,94980.0,94947.0,0.10250365]
[1739373123338,0.10250365,94980.0,94950.0,0.24533476]
[1739373123537,0.00982078,94980.0,94969.0,0.157944]
[1739373123712,0.00982078,94980.0,94951.0,0.10250365]
[1739373123713,0.00982078,94980.0,94967.0,0.157948]
[1739373123954,0.16774878,94980.0,94970.0,0.00341245]
[1739373124155,0.16774878,94980.0,94953.0,0.21063]
[1739373124156,0.21058,94976.0,94968.0,0.00615353]
[1739373124270,0.21058,94976.0,94960.0,0.210614]
[1739373124271,0.00982078,94980.0,94950.0,0.24533476]
[1739373124476,0.00982078,94980.0,94948.0,0.08424999]
[1739373124477,0.01082078,94980.0,94951.0,0.10250365]
[1739373124676,0.01963885,94979.0,94951.0,0.10250365]
[1739373125091,0.02945963,94979.0,94976.0,0.157933]
[1739373125304,0.02945963,94979.0,94975.0,0.157936]
[1739373125509,0.02945963,94979.0,94951.0,0.10250365]
[1739373126012,0.00982078,94979.0,94951.0,0.10250365]
[1739373126347,0.10250365,94978.0,94951.0,0.21076562]
[1739373126558,0.210581,94975.0,94951.0,0.00013262]
[1739373126783,0.15,94973.0,94951.0,0.00013262]
[1739373126943,0.15,94973.0,94921.0,0.08424999]
[1739373126944,0.0206324,94964.0,94932.0,0.07938261]
[1739373127140,0.10250365,94963.0,94933.0,0.21416853]
[1739373127355,0.10250365,94963.0,94935.0,0.158002]
[1739373127356,0.157988,94944.0,94935.0,0.158002]
[1739373127571,0.210643,94947.0,94936.0,0.00348787]
[1739373127779,0.00982078,94943.0,94928.0,0.210685]
[1739373127978,0.158003,94935.0,94924.0,0.210693]
[1739373128223,0.05912078,94943.0,94924.0,0.210693]
[1739373128423,0.05912078,94943.0,94920.0,0.210702]
[1739373128650,0.05925358,94943.0,94929.0,0.210683]
[1739373128870,0.05925358,94943.0,94928.0,0.009]
[1739373129065,0.05925358,94943.0,94941.0,0.157991]
[1739373129066,0.00995358,94943.0,94941.0,0.157991]
[1739373129437,0.00995358,94943.0,94942.0,0.00277134]
[1739373129639,0.00995358,94943.0,94900.0,0.40307842]
[1739373129640,0.158014,94928.0,94927.0,0.0021068]
[1739373129845,0.204414,94928.0,94927.0,0.0021068]
[1739373130048,0.30691765,94928.0,94927.0,0.0021068]
[1739373131069,0.06605294,94928.0,94927.0,0.0001068]
[1739373131617,0.07687372,94928.0,94927.0,0.0001068]
[1739373131828,0.03047372,94928.0,94927.0,0.0029017]
[1739373132031,0.03047372,94928.0,94927.0,0.0001068]
[1739373132386,0.03047372,94928.0,94927.0,0.0029017]
[1739373132998,0.03047372,94928.0,94927.0,0.1609177]
[1739373132999,0.02947372,94928.0,94927.0,0.1609177]
[1739373133198,0.02947372,94928.0,94927.0,0.1581228]
[1739373133395,0.03047372,94928.0,94927.0,0.1609177]
[1739373133575,0.02947372,94928.0,94927.0,0.1609177]
[1739373133996,0.03047372,94928.0,94927.0,0.1609177]
[1739373134200,0.02947372,94928.0,94927.0,0.16442555]
[1739373134430,0.02947372,94928.0,94927.0,0.16542555]
[1739373135259,0.02947372,94928.0,94927.0,0.2679292]
[1739373135482,0.02947372,94928.0,94927.0,0.2699292]
[1739373135891,0.00982078,94928.0,94927.0,0.2699292]
[1739373136327,0.00982078,94928.0,94927.0,0.2679292]
[1739373136742,7.8e-07,94928.0,94927.0,0.3059292]
[1739373136947,2.8e-07,94931.0,94930.0,0.308011]
[1739373137116,2.8e-07,94931.0,94930.0,0.43351465]
[1739373137317,2.8e-07,94931.0,94930.0,0.43251465]
[1739373137543,2.8e-07,94931.0,94930.0,0.40951465]
[1739373137994,2.8e-07,94931.0,94930.0,0.41301584]
[1739373138709,2.8e-07,94931.0,94930.0,0.43601584]
[1739373139009,2.8e-07,94931.0,94930.0,0.45101584]
[1739373139217,2.8e-07,94931.0,94930.0,0.45381059]
[1739373139593,2.8e-07,94931.0,94930.0,0.43881059]
[1739373139759,2.8e-07,94931.0,94930.0,0.45381059]
[1739373140214,2.8e-07,94931.0,94930.0,0.43081059]
[1739373140822,2.8e-07,94931.0,94930.0,0.28081059]
[1739373141023,2.8e-07,94931.0,94930.0,0.27981059]
[1739373141751,2.8e-07,94931.0,94930.0,0.18430694]
[1739373141752,0.00100028,94931.0,94930.0,0.18430694]
[1739373141952,2.8e-07,94931.0,94930.0,0.26481059]
[1739373142183,0.00100028,94931.0,94930.0,0.28681059]
[1739373142588,0.00100028,94931.0,94930.0,0.27981059]
[1739373142788,0.00100028,94931.0,94930.0,0.16930694]
[1739373142994,0.00200028,94931.0,94930.0,0.16930694]
[1739373143173,0.00200028,94931.0,94930.0,0.02829594]
[1739373143529,0.00200028,94931.0,94930.0,0.01329594]
[1739373143736,0.00200028,94931.0,94930.0,0.165011]
[1739373144134,0.00200028,94931.0,94930.0,0.01050119]
[1739373144363,0.00200028,94931.0,94930.0,0.01329178]
[1739373144589,0.00200028,94931.0,94930.0,0.17130278]
[1739373145004,2.8e-07,94931.0,94930.0,0.16430278]
[1739373145210,0.00100028,94931.0,94930.0,0.18630278]
[1739373145440,0.00100028,94931.0,94930.0,0.28180643]
[1739373145646,2.8e-07,94931.0,94930.0,0.26680643]
[1739373145844,2.8e-07,94931.0,94930.0,0.27717643]
[1739373146050,2.8e-07,94931.0,94930.0,0.27917643]
[1739373146482,2.8e-07,94931.0,94930.0,0.27817643]
[1739373146686,2.8e-07,94931.0,94930.0,0.27717643]
[1739373146933,2.8e-07,94931.0,94930.0,0.46217643]
[1739373147773,2.8e-07,94931.0,94930.0,0.43917643]
[1739373147980,2.8e-07,94931.0,94930.0,0.28217643]
[1739373148188,2.8e-07,94931.0,94930.0,0.27717643]
[1739373148389,2.8e-07,94931.0,94930.0,0.29217643]
[1739373148592,0.00100028,94931.0,94930.0,0.29817643]
[1739373148804,2.8e-07,94931.0,94930.0,0.27717643]
[1739373149216,0.00100028,94931.0,94930.0,0.47117643]
[1739373149426,2.8e-07,94931.0,94930.0,0.48517643]
[1739373149629,2.8e-07,94931.0,94930.0,0.47517643]
[1739373150035,0.08424999,94962.0,94942.0,0.317991]
[1739373150250,0.08424999,94962.0,94942.0,0.44349465]
[1739373150654,0.08424999,94962.0,94942.0,0.44625415]
[1739373151034,0.08424999,94962.0,94942.0,0.43625415]
[1739373151238,0.08424999,94962.0,94942.0,0.44561992]
[1739373151884,0.0011328,94943.0,94942.0,0.45161992]
[1739373152311,0.0011328,94943.0,94942.0,0.42261992]
[1739373152511,0.0021328,94943.0,94942.0,0.42761992]
[1739373152625,0.0011328,94943.0,94942.0,0.42261992]
[1739373153448,0.0011328,94943.0,94942.0,0.27261992]
[1739373154017,0.0011328,94943.0,94942.0,0.0027595]
[1739373154420,0.0021328,94943.0,94942.0,0.007]
[1739373154718,0.049,94952.0,94942.0,0.00275581]
[1739373154922,0.001,94943.0,94942.0,0.16774681]
[1739373155127,0.001,94943.0,94942.0,0.007]
[1739373155376,0.01966554,94951.0,94942.0,0.02123037]
[1739373155584,0.001,94943.0,94942.0,0.02823037]
[1739373155757,0.001,94943.0,94942.0,0.007]
[1739373155960,0.00983078,94943.0,94942.0,0.00623037]
[1739373156173,0.01083078,94943.0,94942.0,0.02323037]
[1739373156348,0.01083078,94943.0,94942.0,0.174991]
[1739373156537,0.01083078,94943.0,94942.0,0.17022137]
[1739373156958,0.01083078,94943.0,94942.0,0.27872502]
[1739373157156,0.01083078,94943.0,94942.0,0.17622137]
[1739373157362,0.01083078,94943.0,94942.0,0.17022137]
[1739373157582,0.00983078,94949.0,94948.0,0.157981]
[1739373157814,0.00983078,94949.0,94948.0,0.16044225]
[1739373158732,0.00983078,94949.0,94948.0,0.2629459]
[1739373158966,0.0791,94968.0,94948.0,0.2629459]
[1739373158967,0.0791,94968.0,94967.0,0.157949]
[1739373159170,0.049,94972.0,94948.0,0.1109649]
[1739373159372,0.0791,94952.0,94948.0,0.005]
[1739373159568,0.0791,94952.0,94949.0,0.00432651]
[1739373159769,0.0791,94952.0,94942.0,0.2107597]
[1739373160067,0.0791,94952.0,94943.0,0.157989]
[1739373160279,0.0791,94952.0,94943.0,0.0043473]
[1739373160525,0.0791,94952.0,94944.0,0.210649]
[1739373160733,0.0791,94952.0,94942.0,0.0001067]
[1739373160734,0.0791,94952.0,94945.0,0.157986]
[1739373160938,0.0791,94952.0,94946.0,0.157983]
[1739373161351,0.237074,94952.0,94947.0,0.00433344]
[1739373161552,0.0791,94952.0,94947.0,0.00779691]
[1739373161837,0.0791,94952.0,94948.0,0.004]
[1739373161838,0.15798,94949.0,94948.0,0.004]
[1739373162046,0.157981,94948.0,94947.0,0.00346347]
[1739373162214,0.157985,94946.0,94942.0,0.0021067]
[1739373162664,0.0791,94952.0,94942.0,0.0021067]
[1739373162891,0.0791,94952.0,94947.0,0.002]
[1739373163075,0.60571,94952.0,94948.0,0.004]
[1739373163220,0.157979,94949.0,94948.0,0.004]
[1739373163416,0.91206155,94949.0,94948.0,0.004]
[1739373163621,0.157989,94943.0,94942.0,0.0041067]
[1739373163825,0.86770265,94943.0,94942.0,0.0061067]
[1739373164863,0.86770265,94943.0,94942.0,0.0021067]
[1739373165247,0.86770265,94943.0,94942.0,0.0001067]
[1739373166430,0.70971365,94943.0,94900.0,0.01071198]
[1739373166639,0.237814,94928.0,94927.0,0.0002396]
[1739373166844,0.764424,94928.0,94927.0,0.0002396]
[1739373168235,0.764424,94928.0,94927.0,0.0012396]
[1739373168654,0.60641,94928.0,94927.0,0.0012396]
[1739373168860,0.52661,94928.0,94927.0,0.1592556]
[1739373169059,0.684624,94928.0,94927.0,0.00474745]
[1739373169260,0.52661,94928.0,94927.0,0.0012396]
[1739373169491,0.684624,94928.0,94927.0,0.0012396]
[1739373170131,0.684624,94928.0,94927.0,0.0022396]
[1739373171040,0.684624,94928.0,94927.0,0.0012396]
[1739373171276,0.78712765,94928.0,94927.0,0.0032396]
[1739373171517,0.78712765,94928.0,94927.0,0.0002396]
[1739373171773,0.78712765,94928.0,94927.0,0.0012396]
[1739373172019,0.78712765,94928.0,94927.0,0.0022396]
[1739373172250,0.78712765,94928.0,94927.0,0.0012396]
[1739373172733,0.78712765,94928.0,94927.0,0.0022396]
[1739373173996,0.684624,94928.0,94927.0,0.0022396]
[1739373175005,0.52661,94928.0,94927.0,0.1602556]
[1739373175253,0.52661,94928.0,94927.0,0.16558489]
[1739373177623,0.52661,94928.0,94927.0,0.00756889]
[1739373177881,0.52661,94928.0,94927.0,0.0022396]
[1739373178358,0.52661,94928.0,94927.0,0.00757382]
[1739373178590,0.52661,94928.0,94927.0,0.16208197]
[1739373179613,0.52661,94928.0,94927.0,0.16475814]
[1739373180070,0.52661,94928.0,94927.0,0.26726179]
[1739373180313,0.52661,94928.0,94927.0,0.42772715]
[1739373180314,0.421265,94928.0,94927.0,0.42772715]
[1739373180537,0.421265,94928.0,94927.0,0.46072715]
[1739373180740,0.2953017,94928.0,94927.0,0.47072715]
[1739373180954,0.00022408,94943.0,94942.0,0.307991]
[1739373181152,0.00022408,94943.0,94942.0,0.43349465]
[1739373181358,0.00022408,94943.0,94942.0,0.43791713]
[1739373181768,0.00022408,94943.0,94942.0,0.41491713]
[1739373182379,8e-08,94943.0,94942.0,0.41491713]
[1739373182590,8e-08,94943.0,94942.0,0.43791713]
[1739373182791,8e-08,94943.0,94942.0,0.45291713]
[1739373183218,8e-08,94943.0,94942.0,0.43791713]
[1739373183424,0.09425152,94950.0,94949.0,0.307979]
[1739373183425,0.0310196,94950.0,94949.0,0.307979]
[1739373183638,0.00022408,94981.0,94978.0,0.157931]
[1739373183877,0.00022408,94981.0,94978.0,0.26470188]
[1739373184092,0.00022408,94981.0,94980.0,0.157927]
[1739373184500,0.00022408,94981.0,94980.0,0.26467805]
[1739373184910,0.00035755,94981.0,94980.0,0.26467805]
[1739373185956,0.00035755,94981.0,94980.0,0.27067805]
[1739373186159,0.00035755,94981.0,94980.0,0.42067805]
[1739373186443,0.00035755,94981.0,94980.0,0.44367805]
[1739373186620,0.00035755,94981.0,94980.0,0.45416455]
[1739373186833,0.00035755,94981.0,94980.0,0.46516455]
[1739373187059,0.00035755,94981.0,94980.0,0.44216455]
[1739373187253,0.00035755,94981.0,94980.0,0.43616455]
[1739373187458,0.00035755,94981.0,94980.0,0.45916455]
[1739373187627,0.00035755,94981.0,94980.0,0.46616455]
[1739373187829,0.00035755,94981.0,94980.0,0.44316455]
[1739373188031,0.00035755,94981.0,94980.0,0.27167805]
[1739373188425,0.00035755,94981.0,94980.0,0.28667805]
[1739373188622,0.00035755,94981.0,94980.0,0.1841744]
[1739373188878,0.00035755,94981.0,94980.0,0.1621744]
[1739373189097,0.00035755,94981.0,94980.0,0.26467805]
[1739373189298,0.00035755,94981.0,94980.0,0.28667805]
[1739373189503,0.00035755,94981.0,94980.0,0.27967805]
[1739373189696,0.00035755,94981.0,94980.0,0.1621744]
[1739373189913,0.00035755,94981.0,94980.0,0.1841744]
[1739373190115,0.00035755,94981.0,94980.0,0.0262474]
[1739373190328,0.04855755,94981.0,94980.0,0.0262474]
[1739373190552,0.04855755,94981.0,94980.0,0.022]
[1739373190553,0.0902614,94981.0,94980.0,0.022]
[1739373190764,0.2299612,94981.0,94980.0,0.022]
[1739373190987,0.2299612,94981.0,94940.0,0.25726099]
[1739373191221,0.12745755,94981.0,94959.0,0.210615]
[1739373191458,0.12745755,94981.0,94960.0,0.34914516]
[1739373191683,0.12745755,94981.0,94975.0,0.157936]
[1739373191889,0.12745755,94981.0,94968.0,0.210596]
[1739373192097,0.04855755,94981.0,94980.0,0.01]
[1739373192274,0.00035755,94981.0,94980.0,0.11250365]
[1739373192685,0.00035755,94981.0,94980.0,0.11550365]
[1739373192880,0.00035755,94981.0,94980.0,0.11250365]
[1739373193317,0.00135755,94981.0,94980.0,0.10250365]
[1739373193459,0.00035755,94981.0,94980.0,0.10250365]
[1739373193655,0.00035755,94981.0,94980.0,0.10555639]
[1739373193867,0.00035755,94981.0,94980.0,0.25450365]
[1739373194225,0.00035755,94981.0,94980.0,0.25250365]
[1739373194449,0.00035755,94981.0,94980.0,0.28894882]
[1739373194689,5.5e-07,94981.0,94980.0,0.29894882]
[1739373194878,0.08424999,95015.0,95014.0,0.157871]
[1739373195089,0.08424999,95015.0,95014.0,0.16118593]
[1739373195090,0.08438341,95015.0,95014.0,0.16118593]
[1739373195301,0.00013342,95015.0,95014.0,0.26368958]
[1739373195741,0.00013342,95015.0,95014.0,0.00221493]
[1739373195988,0.00013342,95015.0,95014.0,0.00303993]
[1739373196208,0.00013342,95015.0,95014.0,0.00803993]
[1739373196628,0.00013342,95015.0,95014.0,0.11054358]
[1739373196838,0.00113342,95015.0,95014.0,0.12054358]
[1739373197852,0.00113342,95015.0,95014.0,0.12159589]
[1739373198059,0.00013342,95015.0,95014.0,0.11054358]
[1739373198273,0.00013342,95015.0,95014.0,0.11159589]
[1739373198448,0.00113342,95015.0,95014.0,0.12054358]
[1739373198669,0.00113342,95015.0,95014.0,0.27054358]
[1739373198866,0.00013342,95015.0,95014.0,0.25952218]
[1739373199068,0.00013342,95015.0,95014.0,0.27452218]
[1739373199297,0.00113342,95015.0,95014.0,0.26952218]
[1739373199659,0.00013342,95015.0,95014.0,0.28252218]
[1739373199850,0.00113342,95015.0,95014.0,0.29752218]
[1739373200073,0.00113342,95015.0,95014.0,0.30452218]
[1739373200272,0.00213342,95015.0,95014.0,0.31452218]
[1739373200495,0.00213342,95015.0,95014.0,0.29752218]
[1739373200699,0.00213342,95015.0,95014.0,0.43239318]
[1739373201111,0.00113342,95015.0,95014.0,0.42439318]
[1739373201513,0.00213342,95015.0,95014.0,0.43339318]
[1739373201789,0.00213342,95015.0,95014.0,0.28339318]
[1739373201993,0.00013342,95015.0,95014.0,0.26739318]
[1739373202200,0.00113342,95015.0,95014.0,0.28239318]
[1739373202456,0.00113342,95015.0,95014.0,0.28939318]
[1739373202653,0.00013342,95015.0,95014.0,0.26739318]
[1739373203053,0.00113342,95015.0,95014.0,0.28339318]
[1739373203257,0.00113342,95015.0,95014.0,0.27639318]
[1739373203612,0.00113342,95015.0,95014.0,0.28239318]
[1739373203819,0.00113342,95015.0,95014.0,0.27639318]
[1739373204429,0.00113342,95015.0,95014.0,0.27649968]
[1739373204639,0.00135708,95015.0,95014.0,0.42649968]
[1739373204865,0.00035708,95015.0,95014.0,0.41749968]
[1739373205075,0.00035708,95015.0,95014.0,0.43049968]
[1739373205685,0.00035708,95015.0,95014.0,0.46330649]
[1739373205888,0.00035708,95015.0,95014.0,0.47030649]
[1739373206118,0.00035708,95015.0,95014.0,0.45830649]
[1739373206524,0.00035708,95015.0,95014.0,0.45730649]
[1739373206730,0.00035708,95015.0,95014.0,0.46430649]
[1739373206912,0.00035708,95015.0,95014.0,0.47130649]
[1739373207670,3e-08,95023.0,95022.0,0.330858]
[1739373207874,3e-08,95023.0,95022.0,0.41036165]
[1739373208302,3e-08,95023.0,95022.0,0.4402729]
[1739373208691,3e-08,95023.0,95022.0,0.4172729]
[1739373209306,3e-08,95023.0,95022.0,0.4242729]
[1739373209647,3e-08,95023.0,95022.0,0.4582729]
[1739373210662,3e-08,95023.0,95022.0,0.4512729]
[1739373211247,3e-08,95023.0,95022.0,0.4402729]
[1739373211442,3e-08,95023.0,95022.0,0.4512729]
[1739373211658,3e-08,95023.0,95022.0,0.2782729]
[1739373212011,3e-08,95023.0,95022.0,0.2742729]
[1739373212208,3e-08,95023.0,95022.0,0.4242729]
[1739373212600,3e-08,95023.0,95022.0,0.4312729]
[1739373212800,3e-08,95023.0,95022.0,0.32576925]
[1739373213223,0.00100003,95023.0,95022.0,0.33276925]
[1739373213440,3e-08,95023.0,95022.0,0.32576925]
[1739373213639,3e-08,95023.0,95022.0,0.16791125]
[1739373213842,0.04660003,95023.0,95022.0,0.02491125]
[1739373214170,0.04660003,95023.0,95022.0,0.018]
[1739373214320,0.04660003,95023.0,95022.0,0.164858]
[1739373214521,0.04660003,95023.0,95022.0,0.17175506]